bitfinex/quotes_SOLUSD_20260125
["timestamp","ask_amount","ask_price","bid_price","bid_amount"]
[1769354894934,2.15221354,126.31,126.27,2.23755352]
[1769354895140,2.15221354,126.3,126.27,2.23755352]
[1769354895824,4.30947261,126.3,126.27,2.23755352]
[1769354896944,2.15725907,126.3,126.27,2.23755352]
[1769354897238,4.30947261,126.3,126.27,2.23755352]
[1769354897635,2.15725907,126.3,126.27,2.23755352]
[1769354898042,4.30947261,126.3,126.27,2.23755352]
[1769354899319,4.30947261,126.31,126.27,2.23755352]
[1769354900225,2.15725907,126.3,126.27,2.23755352]
[1769354900838,4.30947261,126.3,126.27,2.23755352]
[1769354902641,2.15725907,126.3,126.27,2.23755352]
[1769354905733,2.15221354,126.31,126.27,2.23755352]
[1769354906034,2.15725907,126.3,126.27,2.23755352]
[1769354909056,32.15725907,126.31,126.27,2.23755352]
[1769354910641,34.30947261,126.31,126.27,2.23755352]
[1769354911862,34.30947261,126.31,126.28,2.23755352]
[1769354911863,32.15725907,126.31,126.28,2.23755352]
[1769354912574,30.0,126.31,126.28,2.23755352]
[1769354912861,32.15725907,126.31,126.28,2.23755352]
[1769354913765,2.2482155,126.3,126.28,2.23755352]
[1769354913965,30.0,126.31,126.28,2.23755352]
[1769354914264,32.2482155,126.31,126.28,2.23755352]
[1769354914480,30.0,126.31,126.28,4.38976706]
[1769354914647,2.2482155,126.33,126.3,4.50463643]
[1769354915349,2.2482155,126.33,126.3,2.35242289]
[1769354916060,2.2482155,126.33,126.29,3.81131225]
[1769354916661,2.2482155,126.33,126.3,1.67255035]
[1769354917372,2.25221354,126.34,126.31,3.83806084]
[1769354917373,2.3482155,126.34,126.31,3.83806084]
[1769354917670,2.3482155,126.34,126.32,1.6858473]
[1769354917671,0.1,126.34,126.32,1.6858473]
[1769354928882,2.3482155,126.34,126.32,1.6858473]
[1769354929059,2.3482155,126.34,126.31,1.82246662]
[1769354929874,2.3482155,126.34,126.3,1.83405082]
[1769354930082,2.2482155,126.32,126.3,1.83405082]
[1769354930378,2.2482155,126.32,126.29,1.83713159]
[1769354932478,2.2482155,126.32,126.28,1.84313996]
[1769354933855,4.39530312,126.32,126.28,1.84313996]
[1769354934080,2.2482155,126.31,126.28,1.84313996]
[1769354940266,2.2482155,126.33,126.28,1.84313996]
[1769354940579,2.2482155,126.33,126.3,1.86593756]
[1769354941588,2.2482155,126.31,126.28,1.86863063]
[1769354942887,4.39530312,126.31,126.26,9.79380334]
[1769354943060,2.4422205,126.3,126.26,1.87393344]
[1769354946781,2.4422205,126.3,126.27,1.88423817]
[1769354948792,2.4422205,126.3,126.25,9.80966933]
[1769354948995,2.4422205,126.29,126.25,9.80966933]
[1769354949201,2.4422205,126.29,126.26,1.89163654]
[1769354950790,4.58930812,126.29,126.26,1.89163654]
[1769354956291,2.4422205,126.29,126.26,1.89163654]
[1769354965496,4.58930812,126.29,126.26,1.89163654]
[1769354965708,2.4422205,126.29,126.26,1.89163654]
[1769354978714,2.4422205,126.29,126.27,1.95500533]
[1769354979519,2.4422205,126.29,126.26,9.87662861]
[1769354984810,2.4422205,126.29,126.26,1.9566788]
[1769355001030,2.4422205,126.29,126.23,17.55754366]
[1769355001239,2.4422205,126.29,126.23,1.83943148]
[1769355001428,2.4422205,126.29,126.25,1.82816303]
[1769355002336,2.4422205,126.29,126.25,11.89792679]
[1769355006636,2.4422205,126.29,126.25,9.7489188]
[1769355007021,2.4422205,126.29,126.24,2.14900799]
[1769355007022,2.28885878,126.28,126.24,9.68438281]
[1769355007218,2.28885878,126.27,126.23,62.95285967]
[1769355007436,2.28885878,126.27,126.23,1.75285967]
[1769355008624,2.28885878,126.27,126.24,1.74258198]
[1769355020241,2.14900799,126.29,126.24,1.74258198]
[1769355020434,2.27271503,126.28,126.25,1.61927691]
[1769355024047,2.27271503,126.27,126.24,1.59335033]
[1769355026549,2.27271503,126.26,126.23,9.4900619]
[1769355027068,4.42172302,126.26,126.23,1.56830808]
[1769355027749,2.27271503,126.26,126.23,1.56830808]
[1769355030251,2.27271503,126.26,126.22,7.92236264]
[1769355030462,2.27271503,126.26,126.22,9.45861398]
[1769355030748,2.27271503,126.26,126.22,7.92236264]
[1769355030933,2.27271503,126.26,126.23,1.53625134]
[1769355031537,2.27271503,126.26,126.21,9.45176382]
[1769355031755,2.27271503,126.25,126.21,9.45176382]
[1769355032645,2.14900799,126.25,126.21,9.45176382]
[1769355032853,2.27271503,126.24,126.21,9.45176382]
[1769355036861,2.27271503,126.24,126.21,1.52846139]
[1769355037068,2.27271503,126.24,126.2,10.07270204]
[1769355037069,2.27271503,126.24,126.2,1.48358728]
[1769355037945,2.14900799,126.24,126.2,1.48358728]
[1769355038151,2.11515008,126.23,126.2,1.48358728]
[1769355039961,2.11515008,126.25,126.22,1.46228975]
[1769355040168,2.14900799,126.27,126.24,3.61129774]
[1769355040169,2.11515008,126.27,126.24,3.61129774]
[1769355040344,2.11515008,126.27,126.21,2.14900799]
[1769355040345,2.11515008,126.31,126.25,3.60435383]
[1769355040545,2.11515008,126.29,126.25,3.60435383]
[1769355040754,2.11515008,126.29,126.25,1.45534584]
[1769355041769,4.26415807,126.28,126.24,1.44849701]
[1769355041971,2.11515008,126.27,126.24,1.44849701]
[1769355042466,2.11515008,126.27,126.24,9.36984179]
[1769355042762,2.11515008,126.27,126.23,11.51255852]
[1769355042960,2.11515008,126.27,126.23,1.44173348]
[1769355043342,2.11515008,126.26,126.22,11.506472]
[1769355045564,2.11515008,126.26,126.22,11.50749926]
[1769355048869,2.11515008,126.26,126.22,10.07246848]
[1769355049056,2.11515008,126.26,126.23,1.40265829]
[1769355057581,2.11515008,126.26,126.23,3.55269354]
[1769355060284,2.11515008,126.26,126.23,1.40265829]
[1769355060776,2.11515008,126.26,126.22,11.39838208]
[1769355060977,2.11515008,126.25,126.21,11.39891505]
[1769355062273,2.11515008,126.25,126.21,3.47594885]
[1769355063285,2.04438574,126.24,126.2,1.30241657]
[1769355063482,2.04438574,126.23,126.19,11.3767192]
[1769355069505,2.04438574,126.23,126.2,2.15003525]
[1769355071207,2.04438574,126.23,126.19,1.30241657]
[1769355071496,2.04438574,126.23,126.2,2.15003525]
[1769355072075,2.04438574,126.23,126.19,3.45245182]
[1769355074291,2.04438574,126.23,126.2,2.15003525]
[1769355077008,2.04438574,126.23,126.21,2.15003525]
[1769355077207,2.02471054,126.25,126.22,3.37836453]
[1769355077403,99.59094244,126.28,126.24,2.15003525]
[1769355078882,99.59094244,126.28,126.22,1.22832928]
[1769355079192,99.59094244,126.28,126.24,2.15003525]
[1769355079386,2.02471054,126.27,126.24,2.15003525]
[1769355080319,2.02471054,126.27,126.23,2.15003525]
[1769355089321,2.02471054,126.27,126.23,4.21370134]
[1769355095021,2.02471054,126.27,126.24,2.15003525]
[1769355105635,2.02471054,126.27,126.24,2.1496967]
[1769355115922,2.01964972,126.31,126.26,4.30337668]
[1769355116130,2.01964972,126.31,126.27,2.1496967]
[1769355116429,2.01964972,126.29,126.24,2.15367998]
[1769355116640,2.01964972,126.28,126.24,2.1496967]
[1769355116942,2.01964972,126.27,126.23,4.30337668]
[1769355117930,4.16934642,126.27,126.23,2.15367998]
[1769355118240,2.01964972,126.26,126.23,2.15367998]
[1769355118636,2.01964972,126.26,126.22,2.1496967]
[1769355118637,2.01964972,126.26,126.22,4.30337668]
[1769355121152,2.01964972,126.25,126.22,2.15367998]
[1769355124956,2.01964972,126.25,126.22,4.30337668]
[1769355129936,2.02163458,126.27,126.24,4.16651103]
[1769355131646,2.02163458,126.27,126.24,2.01681433]
[1769355139564,2.04511499,126.26,126.22,2.16988196]
[1769355148871,2.04511499,126.26,126.22,4.31957866]
[1769355152876,2.04511499,126.26,126.23,2.16988196]
[1769355177297,2.0433522,126.27,126.23,2.16988196]
[1769355177498,2.0433522,126.27,126.24,2.04215407]
[1769355220240,1.99911076,126.25,126.22,1.98117373]
[1769355220440,1.99911076,126.24,126.22,1.98117373]
[1769355220841,1.99911076,126.24,126.2,1.98117373]
[1769355221025,1.99911076,126.22,126.2,1.98117373]
[1769355225053,1.99911076,126.22,126.18,2.15016613]
[1769355225357,1.99911076,126.22,126.19,1.98117373]
[1769355230659,1.99911076,126.23,126.19,1.98117373]
[1769355230859,1.99911076,126.23,126.2,1.98117373]
[1769355233479,1.99911076,126.21,126.18,1.98117373]
[1769355233644,1.99911076,126.21,126.19,1.98117373]
[1769355237780,2.15166226,126.21,126.15,2.18117373]
[1769355237952,4.15077302,126.2,126.16,1.98117373]
[1769355240760,2.15166226,126.19,126.16,1.98117373]
[1769355241073,4.15077302,126.19,126.16,1.98117373]
[1769355241485,1.99911076,126.18,126.15,2.18117373]
[1769355244566,10.07567814,126.2,126.15,2.18117373]
[1769355244567,1.96783213,126.19,126.15,2.18117373]
[1769355246671,1.96783213,126.19,126.16,2.02474821]
[1769355248180,1.96783213,126.19,126.15,0.2]
[1769355248181,1.96783213,126.16,126.15,0.2]
[1769355248359,2.15166226,126.16,126.14,0.2]
[1769355248565,1.96783213,126.15,126.14,0.2]
[1769355249374,1.96783213,126.16,126.14,0.2]
[1769355249693,4.11949439,126.17,126.14,2.22474821]
[1769355251573,1.96783213,126.16,126.14,2.22474821]
[1769355259093,1.96783213,126.16,126.14,0.2]
[1769355261511,1.96783213,126.16,126.14,2.11421004]
[1769355262414,4.17552374,126.17,126.14,2.11421004]
[1769355264719,2.02386148,126.16,126.14,0.2]
[1769355265819,2.02386148,126.15,126.14,0.2]
[1769355268923,4.17552374,126.15,126.13,0.2]
[1769355269212,2.15166226,126.14,126.13,0.2]
[1769355270002,4.17552374,126.14,126.13,0.2]
[1769355270198,2.02386148,126.14,126.13,0.2]
[1769355270515,4.17552374,126.14,126.13,0.2]
[1769355270689,4.17552374,126.14,126.11,2.32706609]
[1769355274021,2.02386148,126.14,126.11,2.32706609]
[1769355280005,1.88636462,126.13,126.11,0.41285605]
[1769355280213,1.88636462,126.12,126.11,0.41285605]
[1769355280599,4.03802688,126.12,126.11,0.41285605]
[1769355281014,1.88636462,126.11,126.1,0.2]
[1769355281207,1.88636462,126.1,126.09,0.2]
[1769355281523,1.88636462,126.09,126.08,0.2]
[1769355281704,4.03802688,126.09,126.08,0.2]
[1769355282599,4.03802688,126.09,126.06,2.27426177]
[1769355284416,1.88636462,126.09,126.06,2.27426177]
[1769355284618,4.03802688,126.09,126.06,2.27426177]
[1769355285225,1.88636462,126.09,126.06,2.27426177]
[1769355289523,4.03802688,126.09,126.06,2.27426177]
[1769355289828,4.04266108,126.09,126.06,2.27426177]
[1769355294806,1.88636462,126.08,126.06,0.2]
[1769355295013,1.88636462,126.07,126.04,2.27426177]
[1769355295437,4.04266108,126.08,126.04,2.27426177]
[1769355299214,7.9297668,126.11,126.08,21.64390871]
[1769355299413,2.15629646,126.09,126.06,2.07426177]
[1769355299613,2.15629646,126.08,126.06,2.07426177]
[1769355301215,4.04266108,126.08,126.06,2.07426177]
[1769355303047,2.15629646,126.08,126.06,2.07426177]
[1769355304114,4.24707867,126.08,126.06,2.07426177]
[1769355307336,2.15629646,126.09,126.06,2.07426177]
[1769355307535,2.15629646,126.1,126.06,2.07426177]
[1769355307729,107.52017558,126.12,126.08,2.08619195]
[1769355307730,103.83802111,126.12,126.08,2.08619195]
[1769355307933,101.68172465,126.12,126.08,2.08619195]
[1769355308239,103.83802111,126.12,126.08,2.08619195]
[1769355309334,2.09078221,126.11,126.08,2.08619195]
[1769355310122,2.09078221,126.11,126.07,2.15629646]
[1769355310328,4.24707867,126.11,126.08,2.08619195]
[1769355313726,2.09078221,126.11,126.08,2.08619195]
[1769355316740,4.24707867,126.11,126.08,2.08619195]
[1769355318628,2.09078221,126.11,126.08,2.08619195]
[1769355324547,2.09078221,126.11,126.05,7.93303705]
[1769355324548,22.02,126.13,126.1,2.00887098]
[1769355324851,23.98436678,126.13,126.1,2.00887098]
[1769355332941,22.02,126.13,126.1,2.00887098]
[1769355333146,2.03902064,126.14,126.11,2.08646022]
[1769355340858,4.1953171,126.15,126.11,2.08646022]
[1769355342858,2.15629646,126.15,126.11,2.08646022]
[1769355343164,2.03902064,126.14,126.11,2.08646022]
[1769355347060,4.1953171,126.16,126.11,4.24275668]
[1769355347244,2.03902064,126.16,126.13,2.08646022]
[1769355348246,4.1953171,126.16,126.13,2.08646022]
[1769355350664,2.03902064,126.15,126.12,2.08646022]
[1769355358385,2.03902064,126.16,126.12,2.08646022]
[1769355358682,4.19318032,126.16,126.12,2.08646022]
[1769355358868,2.03902064,126.15,126.12,2.08646022]
[1769355360681,2.03902064,126.14,126.1,2.08646022]
[1769355360891,4.19318032,126.14,126.1,2.08646022]
[1769355361677,2.03902064,126.14,126.1,2.08646022]
[1769355361884,2.03902064,126.14,126.11,2.08646022]
[1769355389183,121.61094244,126.17,126.12,2.03416461]
[1769355389486,2.18098241,126.16,126.13,2.03416461]
[1769355392176,4.33514209,126.16,126.13,2.03416461]
[1769355396611,2.13705929,126.15,126.13,2.03416461]
[1769355418035,123.74800173,126.17,126.13,2.03416461]
[1769355418331,2.15408627,126.16,126.13,2.03416461]
[1769355418527,4.29114556,126.16,126.13,2.03416461]
[1769355420636,2.15408627,126.15,126.13,2.03416461]
[1769355421530,2.15408627,126.14,126.09,7.93058578]
[1769355421731,2.15408627,126.13,126.09,7.93058578]
[1769355421943,2.15408627,126.13,126.09,5.36086188]
[1769355422139,129.53693154,126.17,126.07,7.93186165]
[1769355422140,2.15408627,126.11,126.07,7.93186165]
[1769355422343,1.76005263,126.11,126.07,7.93186165]
[1769355422815,2.13705929,126.12,126.07,7.93186165]
[1769355422816,4.29114556,126.12,126.07,7.93186165]
[1769355423018,4.29114556,126.12,126.06,13.293576]
[1769355423339,2.15408627,126.11,126.06,15.44766227]
[1769355423524,2.15408627,126.11,126.07,2.19307142]
[1769355426136,4.25845508,126.11,126.07,2.19307142]
[1769355426722,2.15408627,126.1,126.07,2.19307142]
[1769355426938,4.25845508,126.11,126.07,2.19307142]
[1769355433240,2.10436881,126.09,126.07,2.19307142]
[1769355433820,4.25845508,126.1,126.07,2.19307142]
[1769355436017,4.24784204,126.09,126.07,2.19307142]
[1769355436543,4.24784204,126.09,126.04,7.71494815]
[1769355436748,4.24784204,126.08,126.05,2.29229115]
[1769355436959,1.9938816,126.08,126.05,2.29229115]
[1769355437931,4.14796787,126.08,126.05,2.29229115]
[1769355451053,1.9938816,126.08,126.05,2.29229115]
[1769355451254,4.14796787,126.08,126.05,2.29229115]
[1769355453253,2.15408627,126.08,126.05,2.29229115]
[1769355453449,4.29146202,126.09,126.05,2.29229115]
[1769355459459,2.15408627,126.08,126.05,2.29229115]
[1769355460359,4.29146202,126.08,126.05,2.29229115]
[1769355473577,4.29409727,126.08,126.05,2.29229115]
[1769355480775,2.13737575,126.08,126.05,2.29229115]
[1769355483781,2.20192392,126.1,126.06,2.20052069]
[1769355483976,4.35864544,126.1,126.06,2.20052069]
[1769355484177,4.35864544,126.11,126.06,2.20052069]
[1769355484373,2.15672152,126.11,126.06,2.20052069]
[1769355484681,2.20192392,126.1,126.06,2.20052069]
[1769355485380,2.15672152,126.11,126.04,0.2]
[1769355485381,2.15672152,126.07,126.04,0.2]
[1769355485564,2.15672152,126.05,126.02,2.20052069]
[1769355485890,2.15672152,126.04,126.02,2.20052069]
[1769355486260,7.93130145,126.09,126.01,0.2]
[1769355486261,2.15672152,126.03,126.01,0.2]
[1769355486461,2.15672152,126.02,126.01,0.2]
[1769355487182,2.15672152,126.02,125.98,2.20052069]
[1769355487379,4.35864544,126.02,125.98,2.20052069]
[1769355488163,2.20192392,126.03,125.99,2.20052069]
[1769355488383,4.35864544,126.04,125.99,2.20052069]
[1769355489565,2.15672152,126.03,125.99,2.20052069]
[1769355492585,4.35864544,126.03,125.99,2.20052069]
[1769355494801,2.15672152,126.02,125.99,2.20052069]
[1769355496786,4.47351109,126.02,125.99,2.20052069]
[1769355496980,2.15672152,126.01,125.99,2.20052069]
[1769355500066,4.47351109,126.01,125.99,2.20052069]
[1769355501595,4.47351109,126.01,125.98,2.25204453]
[1769355503077,4.47351109,126.0,125.98,2.25204453]
[1769355504093,4.47351109,126.0,125.97,2.45204453]
[1769355504297,2.15672152,125.98,125.97,0.2]
[1769355504499,2.15672152,125.98,125.96,2.45204453]
[1769355506095,2.31678957,125.99,125.96,2.45204453]
[1769355506096,4.47351109,125.99,125.96,2.45204453]
[1769355506591,2.31678957,125.97,125.96,0.2]
[1769355508388,2.15672152,125.98,125.96,2.45204453]
[1769355508978,4.47351109,125.98,125.96,2.45204453]
[1769355509182,4.47351109,126.0,125.96,2.45204453]
[1769355509588,2.31678957,125.99,125.96,2.45204453]
[1769355510195,2.31678957,126.0,125.97,2.25204453]
[1769355510781,4.47351109,126.01,125.97,2.25204453]
[1769355511004,2.31678957,126.0,125.97,2.25204453]
[1769355512808,2.31678957,126.01,125.98,2.25204453]
[1769355522112,99.59094244,126.06,125.96,0.2]
[1769355522113,2.26678653,125.98,125.96,0.2]
[1769355522411,4.42350805,125.98,125.96,0.2]
[1769355525025,4.42350805,126.0,125.96,2.46463724]
[1769355525199,2.26678653,126.0,125.97,2.26463724]
[1769355530716,2.26678653,126.0,125.97,4.42135876]
[1769355531397,2.26678653,126.0,125.97,2.26463724]
[1769355540926,2.26678653,125.99,125.96,2.46463724]
[1769355568240,2.30950442,126.01,125.97,2.51753694]
[1769355568438,2.30950442,126.01,125.98,2.51753694]
[1769355572516,2.30950442,126.0,125.98,2.51753694]
[1769355574854,4.55184524,126.01,125.98,2.51753694]
[1769355579634,4.55184524,126.02,125.98,2.51753694]
[1769355582539,4.55184524,126.0,125.98,2.51753694]
[1769355582739,4.55184524,126.0,125.97,2.41343195]
[1769355585756,2.15931178,125.99,125.97,2.41343195]
[1769355586539,2.39253346,125.97,125.95,0.2]
[1769355586857,2.15931178,125.97,125.95,0.2]
[1769355588557,2.15931178,125.97,125.94,2.61343195]
[1769355588558,2.15931178,125.96,125.92,0.2]
[1769355588873,2.15931178,125.96,125.91,2.61343195]
[1769355588874,4.01589318,125.93,125.91,0.2]
[1769355589045,1.6565814,125.92,125.91,0.2]
[1769355589548,3.82101473,125.93,125.91,0.2]
[1769355593469,3.83959253,125.94,125.91,2.61343195]
[1769355595341,3.84857949,125.94,125.91,2.61343195]
[1769355595545,3.85070935,125.94,125.91,2.61343195]
[1769355600549,1.71076229,125.95,125.91,2.61343195]
[1769355601348,1.71488407,126.02,125.97,2.41343195]
[1769355601548,1.71488407,126.02,125.99,2.41343195]
[1769355602161,3.87632571,126.02,125.99,2.41343195]
[1769355602343,3.87632571,126.02,125.97,2.16144164]
[1769355602552,1.71896793,126.01,125.97,2.41343195]
[1769355602770,3.88040957,126.01,125.97,2.41343195]
[1769355603082,3.88040957,126.0,125.97,2.41343195]
[1769355603251,1.72701289,126.02,125.94,2.44367375]
[1769355603448,1.72701289,125.98,125.94,2.44367375]
[1769355604153,3.88845453,125.98,125.94,2.44367375]
[1769355604877,2.16144164,125.97,125.94,2.44367375]
[1769355605088,3.89240692,125.97,125.94,2.44367375]
[1769355606082,1.73096528,125.97,125.94,2.44367375]
[1769355606290,2.16144164,125.99,125.95,2.44367375]
[1769355606481,1.73875133,125.98,125.95,2.44367375]
[1769355606870,3.90019297,125.98,125.95,2.44367375]
[1769355609364,2.16144164,125.98,125.95,2.44367375]
[1769355609976,3.91152249,125.98,125.95,2.44367375]
[1769355610777,3.91521033,126.0,125.95,4.60511539]
[1769355610978,1.75376869,126.0,125.96,2.44367375]
[1769355615085,134.9300264,126.03,125.98,2.6328422]
[1769355615086,1.77161427,126.03,125.98,2.6328422]
[1769355615297,1.77161427,126.03,125.99,2.6328422]
[1769355615896,3.93305591,126.03,125.99,2.6328422]
[1769355616271,1.77506457,126.02,125.99,2.6328422]
[1769355618376,3.94659328,126.03,125.99,2.6328422]
[1769355619300,1.78846195,126.02,125.99,2.6328422]
[1769355619893,3.94990359,126.03,125.99,2.6328422]
[1769355620701,126.92749048,126.07,125.99,2.6328422]
[1769355620702,3.95315372,126.04,125.99,2.6328422]
[1769355620891,1.79171208,126.03,125.99,2.6328422]
[1769355621795,1.794911,126.06,126.02,2.6328422]
[1769355622007,22.04,126.08,126.03,2.6328422]
[1769355622008,1.794911,126.07,126.03,2.6328422]
[1769355622189,1.794911,126.07,126.0,13.29690527]
[1769355622190,3.95635264,126.04,126.0,2.6328422]
[1769355622979,2.16144164,126.04,126.0,2.6328422]
[1769355623887,1.79806733,126.05,126.01,2.6328422]
[1769355624087,2.16144164,126.04,126.01,2.6328422]
[1769355624287,3.95950897,126.05,126.01,2.6328422]
[1769355626688,1.79806733,126.05,126.01,2.6328422]
[1769355632382,1.82774345,126.03,125.99,2.6328422]
[1769355633795,1.8332851,126.02,125.98,2.57743498]
[1769355633984,1.8332851,126.0,125.97,2.57743498]
[1769355635007,3.99472674,126.0,125.97,2.57743498]
[1769355646227,1.8332851,126.0,125.97,2.57743498]
[1769355647799,3.99472674,126.0,125.97,2.57743498]
[1769355649420,1.8332851,126.0,125.97,2.57743498]
[1769355655800,3.99472674,126.0,125.97,2.57743498]
[1769355657624,3.99254756,126.0,125.97,2.57743498]
[1769355660109,2.15926246,125.99,125.97,2.57743498]
[1769355660310,4.04497907,125.99,125.95,2.57743498]
[1769355671635,1.88571661,125.99,125.95,2.57743498]
[1769355673860,4.04497907,125.99,125.95,2.57743498]
[1769355695065,1.91712281,125.98,125.94,10.47598327]
[1769355695259,4.07638527,125.97,125.94,2.53601536]
[1769355699776,1.92052556,125.96,125.93,2.53601536]
[1769355699990,4.07978802,125.96,125.93,2.53601536]
[1769355709294,2.15926246,125.96,125.93,2.53601536]
[1769355709501,4.08596246,125.95,125.93,2.53601536]
[1769355710197,4.08596246,125.95,125.92,2.53601536]
[1769355713193,2.15926246,125.95,125.92,2.53601536]
[1769355714608,4.08770492,125.95,125.92,2.53601536]
[1769355715106,2.15926246,125.95,125.92,2.53601536]
[1769355716103,4.08803099,125.95,125.92,2.53601536]
[1769355717627,1.92876853,125.95,125.92,2.53601536]
[1769355717811,4.09003366,125.95,125.92,2.53601536]
[1769355719313,2.16126513,125.94,125.92,2.53601536]
[1769355720286,4.09003366,125.95,125.92,2.53601536]
[1769355722204,7.93778353,125.98,125.91,0.2]
[1769355722205,2.16126513,125.93,125.91,0.2]
[1769355722394,4.09227281,125.93,125.91,0.2]
[1769355722904,2.16126513,125.92,125.91,0.2]
[1769355723105,4.09258053,125.92,125.89,2.73586486]
[1769355723305,4.09258053,125.91,125.88,2.93586486]
[1769355723689,4.09288404,125.9,125.88,0.2]
[1769355724313,2.16126513,125.9,125.88,2.93586486]
[1769355725386,4.09288404,125.91,125.88,2.93586486]
[1769355726218,1.93161891,125.91,125.88,2.93586486]
[1769355726426,4.09288404,125.91,125.88,2.93586486]
[1769355728110,4.09288404,125.91,125.88,2.43586486]
[1769355731930,1.93161891,125.91,125.88,2.43586486]
[1769355732442,4.09288404,125.91,125.88,2.43586486]
[1769355736152,2.24131979,125.93,125.88,2.43586486]
[1769355736346,4.40345663,125.95,125.9,2.50309385]
[1769355736525,4.40345663,125.95,125.91,2.50309385]
[1769355736931,2.16126513,125.95,125.91,2.50309385]
[1769355737329,4.40432009,125.95,125.91,2.50309385]
[1769355738152,2.24305496,125.95,125.91,2.50309385]
[1769355740156,4.40602208,125.96,125.92,2.50309385]
[1769355743453,2.16126513,125.95,125.92,2.50309385]
[1769355754343,4.41831349,125.94,125.9,2.65988258]
[1769355754863,4.41831349,125.93,125.9,2.65988258]
[1769355755656,4.41901264,125.94,125.9,2.65988258]
[1769355759065,2.25774751,125.94,125.9,2.65988258]
[1769355761672,4.41901264,125.94,125.9,2.65988258]
[1769355768648,2.25774751,125.94,125.9,2.65988258]
[1769355768849,4.42741931,125.95,125.9,2.65988258]
[1769355769675,2.16126513,125.95,125.9,2.65988258]
[1769355769974,2.26674351,125.94,125.9,2.65988258]
[1769355771974,2.26791825,125.93,125.9,2.65988258]
[1769355772273,4.4297579,125.94,125.9,2.65988258]
[1769355775582,2.27019353,125.93,125.9,2.65988258]
[1769355782584,2.27391703,125.94,125.9,2.65988258]
[1769355782988,2.27391703,125.94,125.9,4.82137271]
[1769355783288,2.27391703,125.94,125.91,2.58940794]
[1769355797009,2.27391703,125.94,125.9,2.51700512]
[1769355805117,6.68097677,125.93,125.9,2.51700512]
[1769355805317,2.28460406,125.93,125.9,2.51700512]
[1769355822635,2.29121314,125.92,125.9,2.51700512]
[1769355822849,2.29121314,125.92,125.89,2.61766776]
[1769355834835,2.2919248,125.91,125.88,32.61766776]
[1769355839062,2.2919248,125.91,125.89,2.61766776]
[1769355839240,2.29089139,125.92,125.89,2.61766776]
[1769355839648,2.29064388,125.94,125.9,2.61766776]
[1769355840143,2.29064388,125.94,125.91,2.61766776]
[1769355841483,104.04256746,125.95,125.91,2.61766776]
[1769355841657,101.88107493,125.95,125.92,2.61766776]
[1769355862275,99.59094244,125.95,125.92,2.61766776]
[1769355862852,99.59094244,125.95,125.93,2.67129645]
[1769355863052,99.59094244,125.95,125.94,2.67129645]
[1769355863253,2.28500774,125.97,125.94,2.67129645]
[1769355864749,4.44650027,125.97,125.94,2.67129645]
[1769355864958,4.44612517,125.97,125.94,2.67129645]
[1769355865667,2.28443373,125.96,125.93,2.67129645]
[1769355865868,4.44592626,125.96,125.93,2.67129645]
[1769355866656,2.28425755,125.95,125.9,2.67129645]
[1769355866852,2.28425755,125.95,125.92,2.67129645]
[1769355867157,2.28425755,125.94,125.91,2.67129645]
[1769355875398,2.28261047,125.93,125.91,2.67129645]
[1769355886807,2.28091637,125.94,125.91,2.67129645]
[1769355895620,4.39505441,125.93,125.91,2.67129645]
[1769355903921,8.82814089,125.93,125.9,2.74207221]
[1769355904106,4.43308648,125.93,125.9,2.74207221]
[1769355905417,4.43205612,125.91,125.88,32.74207221]
[1769355905816,2.27063263,125.91,125.88,32.74207221]
[1769355909405,2.26863688,125.9,125.88,30.0]
[1769355913926,2.26863688,125.9,125.88,32.74207221]
[1769355915322,4.42718954,125.91,125.88,32.74207221]
[1769355915625,2.2653167,125.9,125.88,32.74207221]
[1769355916431,4.42674019,125.91,125.88,32.74207221]
[1769355922747,4.42674019,125.91,125.88,27.73602735]
[1769355922748,2.26226596,125.9,125.88,27.73602735]
[1769355922913,2.16142349,125.9,125.88,27.73602735]
[1769355924137,2.16142349,125.9,125.88,2.48538959]
[1769355927346,2.18316994,125.9,125.88,2.48538959]
[1769355937733,2.16142349,125.9,125.88,5.24447976]
[1769355938352,2.23407724,125.9,125.88,5.24447976]
[1769355940247,2.16142349,125.9,125.88,5.24447976]
[1769355942740,2.24952402,125.9,125.88,5.24447976]
[1769355943058,2.16142349,125.9,125.88,5.24447976]
[1769355944954,2.25698446,125.9,125.88,5.24447976]
[1769355945351,0.09922799,125.92,125.89,2.75909017]
[1769355945554,6.59118198,125.92,125.89,2.75909017]
[1769355945754,4.3305305,125.91,125.89,2.75909017]
[1769355946457,0.09922799,125.92,125.89,2.75909017]
[1769355946656,4.34326087,125.92,125.89,2.75909017]
[1769355948058,6.50468436,125.92,125.89,2.75909017]
[1769355948258,4.34326087,125.91,125.89,2.75909017]
[1769355958238,4.34326087,125.9,125.89,2.75909017]
[1769355958442,4.34326087,125.91,125.89,2.75909017]
[1769355965970,99.59094244,125.93,125.91,2.69221496]
[1769355966271,4.86003243,125.95,125.91,2.69221496]
[1769355967379,4.86003243,125.94,125.91,2.69221496]
[1769355967671,2.16244277,125.93,125.91,2.69221496]
[1769355970882,4.86003243,125.93,125.91,2.69221496]
[1769355973772,2.69758966,125.92,125.89,2.69221496]